Cogmind - Beta 9.3 @@@ ROGUE MODE // 2019.12.22 @ 10:40:59 // Winter2019/RPGLIKE Player: Horse Result: Destroyed by S-10 Pest with Light Assault Rifle Performance ------------- Evolutions (0) 0 Regions Visited (2) 400 Robots Destroyed (44) 220 Value Destroyed (970) 970 Prototype IDs (4) 80 Alien Tech Used (0) 0 Bonus (0) 0 TOTAL SCORE: 1670 Bonus ------- None Cogmind --------- Core Integrity 0/600 Matter 244/300 Energy 125/125 System Corruption 1% Temperature Cool (0) Movement Rolling (80) Location -10/Mines Parts ------- > --- POWER (1) -------- Light Ion Engine > --- PROPULSION (2) --- Wheel Wheel > --- UTILITY (2) ------ Weapon Shielding Hacking Suite > --- WEAPON (1) ------- Light Cannon > --- INVENTORY (2) ---- Datajack Plasma Flamer Peak State ------------ > --- POWER ------------ Light Ion Engine > --- PROPULSION ------- Wheel Wheel > --- UTILITY ---------- Weapon Shielding Hacking Suite > --- WEAPON ----------- Plasma Flamer > --- INVENTORY -------- Light Cannon Datajack [Rating: 12] Favorites ----------- Power Light Ion Engine Engine Light Ion Engine Propulsion Wheel Leg Aluminum Leg Wheel Wheel Utility Weapon Shielding Hackware Hacking Suite Protection Weapon Shielding Weapon Medium Laser Energy Gun Medium Laser Ballistic Cannon Light Cannon Special Weapon Plasma Flamer Special Melee Weapon Datajack Build | -11 -10 -10 ------- Run | Scr Mat Min Slots Evolved 2 | 1 1 . Power . | . . . Propulsion 1 | 1 . . Utility 1 | . 1 . Weapon . | . . . Parts Attached 23 | 6 15 2 Power 3 | 1 2 . Engine 3 | 1 2 . Core . | . . . Reactor . | . . . Propulsion 8 | 4 4 . Treads . | . . . Leg 2 | 2 . . Wheel 6 | 2 4 . Hover . | . . . Flight . | . . . Utility 3 | . 3 . Device . | . . . Storage . | . . . Processor . | . . . Hackware 1 | . 1 . Protection 2 | . 2 . Artifact . | . . . Weapon 9 | 1 6 2 Energy Gun 3 | 1 2 . Energy Cannon . | . . . Ballistic Gun . | . . . Ballistic Cannon 3 | . 2 1 Launcher . | . . . Special Weapon 1 | . . 1 Impact Weapon . | . . . Slashing Weapon . | . . . Piercing Weapon . | . . . Special Melee Weapon 2 | . 2 . Unidentified Prototypes . | . . . Parts Lost 3 | . 3 . Power 1 | . 1 . Propulsion 1 | . 1 . Utility . | . . . Weapon 1 | . 1 . Highest Loss Streak 1 | . 1 . Average Slot Usage (%) 95 | . 94 100 Engine 18 | . 18 16 Wheel 38 | . 39 33 Hackware 2 | . . 16 Protection 16 | . 16 16 Energy Gun 9 | . 11 . Ballistic Cannon 7 | . 6 14 Special Melee Weapon 1 | . 2 . Naked Turns . | . . . Heaviest Build 7 | 5 7 7 Greatest Support 32 | 32 32 20 Greatest Overweight (x) 1 | 1 . . Average Overweight (x) . | . . . Largest Inventory Capacity 2 | . 1 2 Average Capacity . | . . 1 Most Carried 2 | . 1 2 Average Carried . | . . 1 Final Capacity 2 | . 1 2 Final Carried 2 | . 1 2 Class Distribution -------------------- 94% | Hacker-Mutant 5% | Mutant Dominant Class ---------------- Hacker-Mutant | -10/Materials Hacker-Mutant | -10/Mines Resources | -11 -10 -10 ----------- Run | Scr Mat Min Matter Collected 706 | 260 338 108 Remotely . | . . . Salvage Created 929 | . 784 145 Parts 81 | . 71 10 Haulers Intercepted 2 | . 2 . Recyclers Shooed 1 | . 1 . Parts Field Recycled . | . . . Retrieved Matter . | . . . Parts Self-Destructed . | . . . Prevented . | . . . Kills | -11 -10 -10 ------- Run | Scr Mat Min Combat Hostiles Destroyed 28 | . 22 6 Guns 21 | . 21 . Cannons 7 | . 1 6 Classes Destroyed 9 | . 8 1 Worker 6 | . 5 1 Builder 1 | . 1 . Tunneler 2 | . 2 . Hauler 2 | . 2 . Operator 2 | . 2 . Watcher 3 | . 3 . Swarmer 8 | . 6 2 Grunt 18 | . 16 2 Sentry 2 | . . 2 Best Kill Streak 4 | . 4 2 Combat Bots Only 4 | . 4 2 Max Kills in Single Turn 1 | . 1 1 Gunslinging . | . . . Exploded . | . . . Melee . | . . . Uniques/NPCs Destroyed . | . . . Combat | -11 -10 -10 -------- Run | Scr Mat Min Damage Taken 1991 | . 1529 462 Core 1540 | . 1202 338 Absorbed by Shields . | . . . Redirected to Core 1013 | . 757 256 Core Remaining (%) 100 | 100 . . Volleys Fired 225 | . 189 36 Largest 1 | . 1 1 Hottest 50 | . 50 35 Shots Fired 225 | . 189 36 Gun 142 | . 142 . Cannon 83 | . 47 36 Launcher . | . . . Special . | . . . Kinetic 83 | . 47 36 Thermal 142 | . 142 . Explosive . | . . . Electromagnetic . | . . . Robot Hit Streak 17 | . 10 17 Robot Miss Streak 4 | . 4 3 Penetration Max . | . . . Secondary Targets . | . . . Shots Hit Robots 155 | . 127 28 Core Hits 65 | . 55 10 Critical Hits . | . . . Critical Kills . | . . . Critical Parts Destroyed . | . . . Melee Attacks 1 | . 1 . Impact . | . . . Slashing . | . . . Piercing . | . . . Sneak Attacks 1 | . 1 . Combat Hostiles . | . . . Follow-up Attacks . | . . . Damage Inflicted 2316 | . 1806 510 Guns 1323 | . 1323 . Cannons 993 | . 483 510 Explosions . | . . . Melee . | . . . Ramming . | . . . Kinetic 993 | . 483 510 Thermal 1323 | . 1323 . Explosive . | . . . Electromagnetic . | . . . Impact . | . . . Slashing . | . . . Piercing . | . . . Highest Corruption 1 | . 1 1 Average Corruption 1 | . 1 1 Corruption Purged . | . . . Effects 12 | . 12 . Message Errors 4 | . 4 . Energy Discharges 2 | . 2 . Data Loss (minor) 3 | . 3 . Targeting Errors 3 | . 3 . Overload Shots . | . . . Overflow Damage 12 | . 12 . Projectiles 12 | . 12 . Explosions . | . . . Melee . | . . . Knockbacks 7 | . 3 4 Impact . | . . . Kinetic 7 | . 3 4 Secondary . | . . . Self-Inflicted Damage . | . . . Shots . | . . . Rammed . | . . . Targets Rammed . | . . . Kicked . | . . . Crushed . | . . . Highest Temperature 325 | . 325 18 Average Temperature 97 | . 112 9 Received Heat Transfer 885 | . 726 159 Effects 2 | . 2 . Energy Bleed 2 | . 2 . Siege Activations . | . . . Robots Corrupted . | . . . Combat Hostiles . | . . . Parts Fried . | . . . Impact Corruptions . | . . . Robots Melted . | . . . Combat Hostiles . | . . . Parts Melted 8 | . 8 . Heat Transferred 3790 | . 3790 . Parts Sabotaged . | . . . Parts Stolen . | . . . Parts Stripped . | . . . Power Chain Reactions . | . . . Missiles Intercepted . | . . . Alert | -11 -10 -10 ------- Run | Scr Mat Min Peak Influence 215 | . 215 192 Average Influence 62 | . 60 98 Maximum Alert Level 1 | . 1 . Low Security (%) 97 | 100 97 100 Level 1 2 | . 2 . Level 2 . | . . . Level 3 . | . . . Level 4 . | . . . Level 5 . | . . . High Security . | . . . Max Security . | . . . Squads Dispatched 6 | . 6 . Investigation 4 | . 4 . Extermination . | . . . Reinforcement 2 | . 2 . Assault . | . . . Garrison . | . . . Intercept . | . . . Construction Impeded . | . . . Haulers Reinforced . | . . . Stealth | -11 -10 -10 --------- Run | Scr Mat Min Distress Signals . | . . . Communications Jammed . | . . . Distress Signals . | . . . Times Spotted 41 | . 34 7 Peak Tracking Total 7 | . 7 3 Tactical Retreats 1 | . 1 . Traps | -11 -10 -10 ------- Run | Scr Mat Min Traps Triggered 1 | . 1 . Indirectly . | . . . Trap Hack Attempts 68 | . 68 . Triggered . | . . . Disarmed 2 | . 2 . Reprogrammed 19 | . 19 . Reused 1 | . 1 . Traps Extracted . | . . . Installed . | . . . Triggered 1 | . 1 . Machines | -11 -10 -10 ---------- Run | Scr Mat Min Machines Disabled 4 | . 3 1 Max in Single Turn 1 | . 1 1 Machines Sabotaged . | . . . Garrisons Compromised . | . . . Overloaded Fab Kills . | . . . Fab Network Shutdowns . | . . . Hacking | -11 -10 -10 --------- Run | Scr Mat Min Machines Accessed 8 | . 8 . Terminals 5 | . 5 . Fabricators . | . . . Repair Stations 1 | . 1 . Recycling Units 2 | . 2 . Scanalyzers . | . . . Garrison Access . | . . . Total Hacks 39 | . 39 . Successful 26 | . 26 . Failed 12 | . 12 . Catastrophic . | . . . Database Lockouts 1 | . 1 . Manual 22 | . 22 . Terminals 32 | . 32 . Fabricators . | . . . Repair Stations 2 | . 2 . Recycling Units 5 | . 5 . Scanalyzers . | . . . Garrison Access . | . . . Terminal Hacks 16 | . 16 . Robot Analysis 1 | . 1 . Prototype ID Bank 2 | . 2 . Terminal Index 1 | . 1 . Alert Level 2 | . 2 . Unreport Threat 3 | . 3 . Locate Traps 2 | . 2 . Reprogram Traps 1 | . 1 . Patrol Status 1 | . 1 . Recall Reinforcements 1 | . 1 . Hauler Manifests 1 | . 1 . Registered Components 1 | . 1 . Fabricator Hacks . | . . . Repair Station Hacks 2 | . 2 . Scan Component 1 | . 1 . Repair 1 | . 1 . Recycling Unit Hacks 2 | . 2 . Retrieve Components 2 | . 2 . Scanalyzer . | . . . Garrison Access Hacks . | . . . Unauthorized Hacks 15 | . 15 . Terminals 4 | . 4 . Track 1 | . 1 . Botnet 2 | . 2 . Operators 1 | . 1 . Fabricators . | . . . Repair Stations . | . . . Recycling Units 2 | . 2 . Reject 2 | . 2 . Scanalyzers . | . . . Garrison Access . | . . . Data Cores Recovered . | . . . Used . | . . . Hacking Detections 7 | . 7 . Full Trace Events 3 | . 3 . Feedback Events 1 | . 1 . Corruption 1 | . 1 . Feedback Blocked . | . . . Robot Schematics Acquired . | . . . Robots Built . | . . . Matter . | . . . Time . | . . . Total Robot Build Rating . | . . . Part Schematics Acquired . | . . . Parts Built . | . . . Matter . | . . . Time . | . . . Total Part Build Rating . | . . . Parts Repaired 1 | . 1 . Time 26 | . 26 . Parts Recycled . | . . . Recycled Matter . | . . . Retrieved Matter . | . . . Retrieved Components 12 | . 12 . Parts Scanalyzed . | . . . Part Schematics Acquired . | . . . Parts Damaged . | . . . Bothacking | -11 -10 -10 ------------ Run | Scr Mat Min Used RIF Installer . | . . . Robots Hacked 1 | . 1 . Non-combat 1 | . 1 . Combat . | . . . Robot Hacks Applied 1 | . 1 . parse_system 1 | . 1 . Relay Couplers Released . | . . . Robots Rewired . | . . . Allies Hacked . | . . . Hacks Repelled . | . . . Allies | -11 -10 -10 -------- Run | Scr Mat Min Total Allies . | . . . Largest Group . | . . . Highest-Rated Group . | . . . Highest-Rated Ally . | . . . Total Orders . | . . . Ally Attacks . | . . . Total Damage . | . . . Kills . | . . . Allies Corrupted . | . . . Allies Melted . | . . . Intel | -11 -10 -10 ------- Run | Scr Mat Min Robot Analysis Total 1 | . 1 . Derelict Logs Recovered 1 | . . 1 Drone Launches . | . . . Drone Recoveries . | . . . Exploration | -11 -10 -10 ------------- Run | Scr Mat Min Turns Passed 2032 | 59 1743 230 Spaces Moved 1446 | 48 1243 155 Core 4 | 4 . . Treads . | . . . Legs 14 | 14 . . Wheels 1428 | 30 1243 155 Hover . | . . . Flight . | . . . Fastest Speed 50 | 50 80 80 Average Speed 88 | 103 88 80 Slowest Speed 120 | 120 100 80 Overloaded Moves . | . . . Propulsion Burnouts . | . . . Robots Hopped . | . . . Cave-ins Triggered . | . . . Exploration Rate (%) 45 | 5 100 32 Regions Visited 2 Branch Regions 1 Pre-discovered Areas . | . . . Known Exits Taken . | . . . Unknown Exits Taken 2 | 1 1 . Scrap Searched 1 | . . 1 Spaces Dug . | . . . Terrain Destroyed . | . . . Melee . | . . . Projectile . | . . . AOE . | . . . Actions | -11 -10 -10 --------- Run | Scr Mat Min Total 1970 | 55 1690 225 Wait 156 | . 129 27 Move 1444 | 47 1242 155 Hop . | . . . Pick Up 2 | . 2 . Fast Attach 13 | 6 6 1 Attach . | . . . Detach 1 | . . 1 Swap 10 | . 9 1 Drop 8 | 2 6 . Fire 225 | . 189 36 Melee 1 | . 1 . Ram . | . . . Kick . | . . . Crush . | . . . Escape Stasis . | . . . Rewire . | . . . Trap 68 | . 68 . Miscellaneous 42 | . 38 4 Route ------- -11/Scrapyard -10/Materials (discovered 5 exits: [*Mat x3] / [*Min x2]) -10/Mines History --------- Turn | Location | Event 1 | -11/Scrapyard | Upgraded with Propulsion slot (x1) 14 | -11/Scrapyard | Discovered new exit (range 16) 60 | -11/Scrapyard | Entered Materials 155 | -10/Materials | Central database locked down 252 | -10/Materials | Core integrity fell below 50% 325 | -10/Materials | Discovered new exit (range 9) 433 | -10/Materials | Build established: Hacker-Mutant 450 | -10/Materials | Discovered new exit (range 7) 542 | -10/Materials | Reached level 2 1202 | -10/Materials | Discovered new exit (range 15) 1337 | -10/Materials | Repaired Weapon Shielding 1463 | -10/Materials | Discovered new exit (range 15) 1541 | -10/Materials | Discovered new exit (range 14) 1742 | -10/Materials | Reached level 3 1784 | -10/Materials | Upgraded with Utility slot (x1) 1803 | -10/Materials | Entered Mines 1937 | -10/Mines | Core integrity fell below 20% 1974 | -10/Mines | A weapon hastily lodged in a ceiling crevice suddenly fell to the ground 2016 | -10/Mines | Learned Materials stockpile data 2033 | -10/Mines | Destroyed by S-10 Pest with Light Assault Rifle Last Messages --------------- 01890_ Found Sml. Laser. 01925_ Y-45 Defender destroyed. 01926_ K-01 Serf collects debris. 01949_ Y-45 Defender destroyed. 01951_ K-01 Serf collects debris. 01951_ Acquired 64 matter. 01952_ R-06 Scavenger collects Imp. Ion Engine. 01955_ Used Protomatter to restore core integrity (+21, depleted) 01956_ K-01 Serf destroyed. 01956_ R-06 Scavenger collects Hvy. Assault Rifle. 01958_ Acquired 8 matter. 01974_ A Plasma Flamer hastily lodged in a ceiling crevice suddenly falls to the ground. 01975_ Upgraded: Inventory Capacity (+1) 01976_ Acquired Plasma Flamer. 02003_ Pulverizer disabled. 02016_ Acquired derelict log, extracted data. Data stored: Materials stockpile data. 02024_ S-10 Pest destroyed. 02028_ S-10 Pest knocked back. 02032_ S-10 Pest destroyed. Map ----- +----------------------------------------------------+ | | | | | | | | | | | | | | | | | | | | | | | | | ??????????????????????????????????????? | | ??????????????????????????????????????? | | ??????????????????????????????????????? | | #?????????????????????????????????????? | | ##????????????????????????????????????? | | [#????????????????????????##??????????? | | !####?????????????????####T##?????????? | | ## ##????????????????# ?????????? | | # #????????????????? """"??????????? | | #????????????????? """"??????????? | | ##??????????????????" ???????????? | | ####????????????????=s%???????????? | | ##???????????????#%#???????????? | | ##??????????????#@#???????????? | | ### ##??####???????# #???????????? | | ##?## #### ##??????# #???????????? | | #???## ## ##?????# #???????????? | | ?????# ##????# #???????????? | | ?????## #????# #???????????? | | ??????## #????# #???????????? | | ?#####?####### ###### #???????????? | | ## ####????## #???????????? | | # ###???## ##########???????????? | | ##???###?????????####???????? | | ##??????######### ###?????? | | ####???# % ##????? | | ### ###?# ##### ##???? | | ##?## ### #???## #???? | | #???## ## #????### #???? | | # #???## # #??????## ##??? | | ## #????# #####???## ##?? | | ?# ##????## #????# #?? | | ? #??????#### ### #????# #?? | | #?????????## ##????????## ##?? | | #??????????#####??????????####??? | | #???????????????????????????????? | | #???????????????????????????????? | | ##???????????????????????????????? | +----------------------------------------------------+ Best States ------------- Heat Dissipation 25 Energy Generation 10 Energy Capacity 125 Matter Stores 300 Matter Capacity 300 Sight Range 16 Terrain Scan Density 10 Weapon Shielding 33 Evasion (%) 44 Offensive Hacking 30 Defensive Hacking 15 Item Schematics ----------------- None Robot Schematics ------------------ None Fabricated ------------ Nothing Alien Tech Used ----------------- None Achievements -------------- None Challenges ------------ None RPGLIKE | -11 -10 -10 --------- Run | Scr Mat Min Levels Raised 2 | . 2 . XP Earned 7275 | 3000 3050 1225 XP Spent 5250 | 500 4250 500 Upgrades 11 | 1 9 1 Propulsion Slot 1 | 1 . . Utility Slot 1 | . 1 . Inventory Capacity 2 | . 1 1 Hack Attack % 4 | . 4 . Hack Defense % 3 | . 3 . Protomatter Created 400 | . 371 29 Integrity Restored 936 | . 849 87 Core 936 | . 849 87 Protomatter Decayed 88 | . 88 . Game ------ Seed NeutralizingComponentAirjet Manual? 0 Play Time 00:20:33 Cumulative 830.4 hours Start 2019.12.22 @ 10:22:43 End 2019.12.22 @ 10:40:59 Sessions 1 Manual Loads 0 Difficulty Rogue Special Mode Winter2019/RPGLIKE Game No. 299 Rogue 299 Adventurer 0 Explorer 0 Win Type - Total 12 Types 11/0/1/0/0/0/0 Lore% 76 Gallery% 86 Achievement% 68 Wizard Run 0 Options --------- ASCII 0 Keyboard 1 Movement Numpad Keybinds 0 Fullscreen 2 Font 18/SmallcapsGlow Map View 112x50 Tactical HUD 1 Map Filters NONE Filters NONE Steam 1 RUN: 0554f538-57f5-4c56-bac1-07371dec5ada